[Event "Djerba Festival Masters 2024"]
[Site "Djerba"]
[Date "2024.02.24"]
[Round "6.2"]
[White "Moussard, Jules"]
[Black "Bellahcene, Bilel"]
[Result "1/2-1/2"]
[ECO "A13"]
[WhiteElo "2630"]
[BlackElo "2516"]
[Annotator "TA"]
[PlyCount "133"]
[EventDate "2024.02.18"]
[EventType "tourn"]
[EventCountry "TUN"]
[SourceTitle "playchess.com"]
[Source "ChessBase"]
[SourceQuality "1"]
[TimeControl "5400+30"]

{[%evp 48,133,0,0,0,-5,-8,-12,-4,-11,-12,-11,-16,-10,-11,-17,35,35,37,38,25,9,14,16,8,8,17,17,16,8,8,8,27,27,27,27,27,27,27,27,27,27,27,27,27,27,27,27,27,27,27,27,27,27,27,27,27,0,27,27,27,8,33,33,33,0,0,0,0,0,0,0,0,0,0,0,0,0,0,0,0,0,0,0,0,0,0,0]} 1. c4 {[%emt 0:05:20]} e6 {[%emt 0:02:22]} 2. Nc3 {[%emt 0:00:14]} Bb4 {[%emt 0:02:19]} 3. Qc2 {[%emt 0:02:35]} Nf6 {[%emt 0:02:24]} 4. a3 {[%emt 0:05:11]} Bxc3 {[%emt 0:00:13]} 5. Qxc3 {[%emt 0:00:18]} O-O {[%emt 0:00:14]} 6. b4 {[%emt 0:04:26] A13: English Opening: 1...e6.} d6 {[%emt 0:01:49]} 7. d4 {[%emt 0:04:47]} b6 {[%emt 0:02:01]} 8. Nf3 {[%emt 0:01:19]} a5 {[%emt 0:09:42]} 9. g3 {[%emt 0:10:08]} d5 $146 {[%emt 0:19:38]} ({Predecessor:} 9... axb4 10. axb4 Rxa1 11. Qxa1 Bb7 12. Bg2 Nc6 13. Qc3 b5 14. O-O bxc4 15. Qxc4 Ne7 16. Bg5 Bd5 17. Qc1 Nc6 18. Rd1 Nxb4 {½-½ Marquez Abreu,C (2413)-Langer,R (2239) Webchess op6 Gr009 email 2014}) 10. b5 {[%emt 0:11:12]} c6 {[%emt 0:08:16]} 11. Bg2 {[%emt 0:06:32]} dxc4 {[%emt 0:47:02]} 12. Qxc4 {[%emt 0:02:24]} cxb5 {[%emt 0:00:00]} 13. Qxb5 {[%emt 0:00:07]} Ba6 {[%emt 0:00:00]} 14. Qb2 {[%emt 0:00:14]} Nbd7 {[%emt 0:00:00]} 15. O-O {[%emt 0:04:28]} Rc8 {[%emt 0:00:00]} 16. Bg5 {[%emt 0:00:27]} h6 {[%emt 0:00:00]} 17. Bxf6 {[%emt 0:00:32]} Qxf6 {[%emt 0:00:00]} 18. Rfc1 {[%emt 0:08:42]} Qe7 {[%emt 0:00:00]} 19. e3 {[%emt 0:04:30]} Bb7 {[%emt 0:00:00]} 20. a4 {[%emt 0:01:21]} Qd6 {[%emt 0:00:00]} 21. Nd2 {[%emt 0:04:00]} Bxg2 {[%emt 0:00:00]} 22. Kxg2 {[%emt 0:00:02]} e5 {[%emt 0:00:00]} 23. Nf3 {[%emt 0:00:11]} exd4 {[%emt 0:00:00]} 24. Qxd4 {[%emt 0:02:26]} Qe6 {[%emt 0:00:00]} 25. Rd1 {[%emt 0:01:58]} Nc5 {[%emt 0:00:00]} 26. Qe5 {[%emt 0:06:53]} Qc6 {[%emt 0:00:00]} 27. Rd6 {[%emt 0:01:09]} Qb7 {[%emt 0:00:00]} 28. Qd5 {[%emt 0:04:49]} Qxd5 {[%emt 0:00:00]} 29. Rxd5 {[%emt 0:00:02]} Rfd8 {[%emt 0:00:00]} 30. Rxd8+ {[%emt 0:00:22]} Rxd8 {[%emt 0:00:00]} 31. Nd4 {[%emt 0:00:03]} Ne6 {[%emt 0:00:00]} (31... h5 $11) 32. Nxe6 $14 {[%emt 0:00:52]} fxe6 {[%emt 0:00:00]} 33. Rb1 {[%emt 0:02:24]} Rd6 {[%emt 0:00:00]} 34. Kf3 {[%emt 0:00:46]} Kf7 {[%emt 0:00:00]} 35. Ke2 {[%emt 0:00:08]} Ke7 {[%emt 0:00:00]} 36. f4 {[%emt 0:01:10]} g5 {[%emt 0:02:51]} 37. Kf3 {[%emt 0:00:51]} Kf6 {[%emt 0:00:58]} 38. Kg4 {[%emt 0:02:23]} Rd2 {[%emt 0:05:01]} 39. Rxb6 {[%emt 0:01:49]} Rxh2 {[%emt 0:00:17]} 40. Rb5 {[%emt 0:00:43]} h5+ {[%emt 0:04:23]} 41. Kf3 {[%emt 0:00:03]} g4+ {[%emt 0:00:38]} 42. Ke4 {[%emt 0:00:02]} h4 {[%emt 0:00:29]} 43. gxh4 {[%emt 0:00:21]} (43. Rxa5 $2 {too greedy.} hxg3 44. Rg5 Rh4 $19) 43... Rxh4 {[%emt 0:00:01]} 44. Rxa5 {[%emt 0:00:22]} Rh1 {[%emt 0:00:16]} 45. Rg5 {[%emt 0:02:18]} Ra1 {[%emt 0:00:07]} 46. a5 {[%emt 0:00:06]} (46. Rxg4 {simplifies} Rxa4+ 47. Kf3 Ra1 48. Rg5) 46... Ra4+ {[%emt 0:00:34]} 47. Kd3 {[%emt 0:00:01]} g3 {[%emt 0:00:59]} 48. Ke2 {[%emt 0:00:17]} Ra2+ {[%emt 0:00:33]} 49. Kf1 {[%emt 0:00:05]} (49. Kf3 $5 g2 $8 50. Rxg2 Rxa5 51. Rb2 $11) 49... Rf2+ {[%emt 0:00:45]} 50. Kg1 {[%emt 0:00:03]} Ra2 {[%emt 0:00:06]} 51. Re5 {[%emt 0:00:40]} (51. Rxg3 Rxa5 52. f5 Rxf5 $17) 51... Re2 {[%emt 0:00:23]} 52. e4 {[%emt 0:01:50]} Ra2 {[%emt 0:00:57]} 53. Rg5 {[%emt 0:00:08]} Ra4 {[%emt 0:00:24]} 54. Kg2 {[%emt 0:00:08]} (54. Rxg3 Rxa5 55. Kf1 Ra2 $11) 54... Ra3 {[%emt 0:01:14]} (54... Rxe4 {simplifies} 55. Kxg3 Re3+ 56. Kf2 Ra3) 55. Rb5 {[%emt 0:00:53]} ({Of course not} 55. Rxg3 Rxa5 56. Rc3 Ra4 $11) 55... Kg6 {[%emt 0:00:29]} 56. Rb6 {[%emt 0:00:33]} Kh5 {[%emt 0:00:30]} 57. Kh3 {[%emt 0:00:36]} g2+ {[%emt 0:00:16]} 58. Kxg2 {[%emt 0:00:06]} Kg4 {[%emt 0:00:04]} 59. Rxe6 {[%emt 0:00:27]} Ra2+ {[%emt 0:00:46]} 60. Kf1 {[%emt 0:00:12]} Kxf4 {[%emt 0:00:57]} 61. a6 {[%emt 0:00:06]} Ke3 $1 {[%emt 0:00:13]} 62. Kg1 {[%emt 0:03:40]} Kf3 {[%emt 0:00:15]} 63. Kh1 {[%emt 0:00:29]} Kg3 {[%emt 0:00:18]} 64. Rg6+ {[%emt 0:00:03]} Kf4 {[%emt 0:00:07]} 65. Re6 {[%emt 0:00:43]} Kg3 {[%emt 0:00:09]} 66. Rg6+ {[%emt 0:00:27]} Kf4 {[%emt 0:00:04]} 67. Re6 {[%emt 0:00:00]} 1/2-1/2

[Event "Djerba Festival Masters 2024"]
[Site "Djerba"]
[Date "2024.02.24"]
[Round "6.3"]
[White "Niemann, Hans Moke"]
[Black "Maurizzi, Marc`Andria"]
[Result "0-1"]
[ECO "B10"]
[WhiteElo "2692"]
[BlackElo "2572"]
[Annotator "TA"]
[PlyCount "126"]
[EventDate "2024.02.18"]
[EventType "tourn"]
[EventCountry "TUN"]
[SourceTitle "playchess.com"]
[Source "ChessBase"]
[SourceQuality "1"]
[TimeControl "5400+30"]

{[%evp 67,126,85,87,80,90,80,80,73,82,85,106,114,102,104,230,216,189,215,219,212,216,218,234,205,287,197,279,254,323,322,227,213,371,356,404,216,302,331,347,338,626,387,968,213,371,47,43,-140,-146,-918,-895,-29979,-29980,-29980,-29981,-29981,-29979,-29979,-29980,-29980,-29979]} 1. e4 {[%emt 0:00:09]} c6 {[%emt 0:00:02]} 2. Nf3 {[%emt 0:02:43]} d5 {[%emt 0:00:50]} 3. d3 {[%emt 0:00:07]} dxe4 {[%emt 0:01:10]} 4. dxe4 {[%emt 0:00:10]} Qxd1+ {[%emt 0:00:04]} 5. Kxd1 {[%emt 0:00:12]} Nf6 {[%emt 0:00:22]} 6. Nfd2 {[%emt 0:01:11]} g5 {[%emt 0:02:44]} 7. a4 {[%emt 0:02:24]} h5 {[%emt 0:00:33]} 8. Nc3 {[%emt 0:00:28]} h4 {[%emt 0:01:48]} 9. h3 {[%emt 0:07:27]} Nh5 {[%emt 0:13:05]} 10. Nf3 {[%emt 0:04:31]} f6 {[%emt 0:01:05]} 11. e5 {[%emt 0:00:11]} Nd7 {[%emt 0:11:15]} 12. a5 {[%emt 0:03:29]} Nxe5 {[%emt 0:06:43]} 13. Nxe5 {[%emt 0:00:15]} fxe5 {[%emt 0:00:02]} 14. Bxg5 {[%emt 0:00:14]} Bf5 {[%emt 0:00:15]} 15. Ra4 {[%emt 0:06:42]} O-O-O+ {[%emt 0:02:56]} 16. Kc1 {[%emt 0:00:34]} Nf4 {[%emt 0:14:39]} 17. Bxf4 {[%emt 0:05:55]} exf4 {[%emt 0:01:57]} 18. Be2 {[%emt 0:00:12]} e6 {[%emt 0:05:30]} 19. Ne4 {[%emt 0:14:19]} Rd5 {[%emt 0:05:59]} 20. Bf3 {[%emt 0:03:38]} Be7 {[%emt 0:05:27]} 21. Nd2 {[%emt 0:01:05]} Rd7 {[%emt 0:08:37]} 22. Re1 {[%emt 0:02:49]} Rg8 {[%emt 0:02:25]} 23. Nb3 {[%emt 0:00:40]} a6 {[%emt 0:05:42]} 24. Kb1 {[%emt 0:02:25]} Rf8 {[%emt 0:02:39]} 25. Re2 {[%emt 0:08:27]} Kc7 {[%emt 0:01:00]} 26. Rc4 {[%emt 0:01:45]} Bd6 {[%emt 0:02:58]} 27. Nd4 {[%emt 0:00:28]} Kb8 {[%emt 0:00:58]} 28. Nxe6 {[%emt 0:00:59]} Rf6 {[%emt 0:00:07]} 29. Nd4 {[%emt 0:05:22]} Bg6 {[%emt 0:02:41]} 30. Bg4 {[%emt 0:01:10]} Rd8 {[%emt 0:01:23]} 31. Nf3 {[%emt 0:11:34]} Bc7 {[%emt 0:00:27]} 32. Ra4 {[%emt 0:01:24]} Bf7 {[%emt 0:00:17]} 33. b3 {[%emt 0:14:01]} Rd5 {[%emt 0:00:44]} 34. Nxh4 {[%emt 0:00:00]} Rxa5 {[%emt 0:00:30]} 35. Rxa5 {[%emt 0:00:00]} Bxa5 {[%emt 0:00:02]} 36. Nf3 {[%emt 0:00:00]} Bc3 {[%emt 0:00:23]} 37. h4 {[%emt 0:00:00]} Rd6 {[%emt 0:00:22]} 38. Kc1 {[%emt 0:00:00]} Rd5 {[%emt 0:00:31]} 39. Re4 {[%emt 0:00:00]} Ra5 {[%emt 0:00:14]} 40. Kd1 {[%emt 0:00:00]} (40. Rxf4 $2 Ra1#) 40... Ra1+ {[%emt 0:01:17]} (40... Rd5+ $16 41. Ke2 Bg6) 41. Ke2 $18 {[%emt 0:00:00]} Ra2 {[%emt 0:00:03]} 42. Rxf4 {[%emt 0:00:00]} Bxb3 {[%emt 0:00:20]} 43. Kd3 $1 {[%emt 0:00:00]} Rxc2 {[%emt 0:00:03]} 44. Be6 {[%emt 0:00:00]} Ba1 {[%emt 0:00:34]} 45. Bxb3 {[%emt 0:00:00]} (45. Rf8+ Ka7 46. Bxb3 Rc3+ 47. Ke2 Rxb3 $11) 45... Rc3+ {[%emt 0:00:02]} 46. Kd2 {[%emt 0:00:00]} Rxb3 {[%emt 0:00:01]} 47. h5 {[%emt 0:00:00]} Rb2+ {[%emt 0:00:15]} 48. Ke3 {[%emt 0:00:00]} Rb3+ {[%emt 0:00:01]} 49. Ke2 $1 {[%emt 0:00:00]} Rb2+ $2 {[%emt 0:00:05]} (49... Rb1 {might work better.} 50. h6 Rb2+ 51. Nd2 Rb5) 50. Nd2 $1 $18 {[%emt 0:00:00]} Ra2 {[%emt 0:00:39]} 51. Kd1 {[%emt 0:00:00]} (51. h6 $142) 51... a5 {[%emt 0:00:36]} 52. h6 {[%emt 0:00:00]} a4 {[%emt 0:02:32]} 53. g4 {[%emt 0:05:35]} a3 $2 {[%emt 0:00:31]} (53... Bc3 54. Ne4 Ra1+ 55. Kc2 Be5 56. Rf8+ Kc7) 54. g5 {[%emt 0:00:48]} Bc3 $2 {[%emt 0:00:50]} (54... Be5 55. Rf8+ Ka7) 55. Ne4 $2 {[%emt 0:02:41]} (55. Nb3) 55... Be5 $2 {[%emt 0:00:54] [#]} (55... Bd4 {is a better defense.}) 56. g6 $2 {[%emt 0:01:44]} (56. Rf8+ $1 $18 Ka7 (56... Kc7 57. Ra8) 57. Rf3 Ra1+ 58. Kc2) 56... Ra1+ $1 $14 {[%emt 0:00:21]} (56... Bxf4 57. g7 Ra1+ (57... Bxh6 $2 58. g8=Q+ $18) 58. Ke2 Bxh6 59. g8=Q+ (59. g8=R+ $2 Ka7 $19) 59... Ka7 60. Qh8 Ra2+ 61. Kf3 $18) 57. Ke2 $2 {[%emt 0:00:16]} (57. Kc2 $14 {keeps the upper hand.} a2 (57... Bxf4 $2 58. g7 $18) 58. Rf8+ Ka7 59. Kb3 (59. f4 $2 Rg1 $19)) 57... a2 $17 {[%emt 0:00:43]} (57... Bxf4 $2 58. g7 a2 59. g8=Q+ $18) 58. g7 $2 {[%emt 0:00:52][%mdl 8192] [#]} ({Don't go for} 58. Rf8+ $2 Ka7 59. Rf3 Re1+ 60. Kxe1 a1=Q+ $19 (60... a1=B $2 61. Ra3+ Kb6 62. Rxa1 $18)) (58. Rg4 $17 Rb1 (58... Re1+ $2 59. Kxe1 a1=Q+ 60. Ke2 $19) 59. g7) 58... Rg1 $1 $19 {[%emt 0:00:30]} 59. Ng3 {[%emt 0:00:32]} a1=Q {[%emt 0:01:17]} (59... a1=B 60. g8=Q+ (60. g8=R+ Ka7 $18) 60... Kc7 61. Rf7+ Kb6 62. Qd8+) 60. g8=Q+ {[%emt 0:01:02]} Ka7 {[%emt 0:00:00]} 61. Qc4 {[%emt 0:00:00]} Qd1+ {[%emt 0:00:00]} 62. Ke3 {[%emt 0:00:00]} Re1+ {[%emt 0:00:00]} ({Less strong is} 62... Bxf4+ 63. Kxf4 Qd6+ (63... Qd2+ 64. Kf3 $17) 64. Kf3 $17) 63. Ne2 {[%emt 0:00:00]} Rxe2+ {[%emt 0:00:00]} 0-1

[Event "Djerba Festival Masters 2024"]
[Site "Djerba"]
[Date "2024.02.24"]
[Round "6.4"]
[White "Divya Deshmukh"]
[Black "Ivanchuk, Vasyl"]
[Result "1/2-1/2"]
[ECO "B30"]
[WhiteElo "2420"]
[BlackElo "2623"]
[Annotator "TA"]
[PlyCount "34"]
[EventDate "2024.02.18"]
[EventType "tourn"]
[EventCountry "TUN"]
[SourceTitle "playchess.com"]
[Source "ChessBase"]
[SourceQuality "1"]
[TimeControl "5400+30"]

{[%evp 12,34,15,-6,4,0,0,0,16,28,35,-39,-29,-29,-35,-23,65,59,72,74,89,78,88,82,69]} 1. e4 {[%emt 0:01:51]} c5 {[%emt 0:00:05]} 2. Nf3 {[%emt 0:00:05]} Nc6 {[%emt 0:00:02]} 3. Bb5 {[%emt 0:00:39]} e6 {[%emt 0:00:07]} 4. O-O {[%emt 0:01:09]} Nge7 {[%emt 0:00:04]} 5. Re1 {[%emt 0:00:31]} a6 {[%emt 0:00:06]} 6. Bf1 {[%emt 0:00:08]} d5 {[%emt 0:00:02]} 7. d3 {[%emt 0:01:32]} h6 {[%emt 0:00:10]} 8. c3 {[%emt 0:03:56]} d4 {[%emt 0:01:31]} 9. e5 {[%emt 0:02:47]} g5 {[%emt 0:00:08] The position is equal.} 10. h4 {[%emt 0:18:57]} g4 {[%emt 0:02:48]} 11. Nh2 {[%emt 0:00:48]} (11. Nfd2 $14) 11... h5 $15 {[%emt 0:00:32] Threatens to win with ...Bg7.} 12. Bg5 $1 {[%emt 0:01:29]} Bg7 {[%emt 0:11:44]} 13. f4 {[%emt 0:01:13]} gxf3 {[%emt 0:01:37]} (13... b5 $11) 14. Nxf3 $14 {[%emt 0:00:51]} Qc7 {[%emt 0:00:01][%cal Rc6e5]} 15. cxd4 {[%emt 0:03:05] White is better.} Nf5 {[%emt 0:01:33]} 16. Nbd2 {[%emt 0:05:07]} ({Don't play} 16. dxc5 $6 Nxe5 17. Rxe5 Bxe5 $11) 16... Nfxd4 {[%emt 0:00:12][%cal Rc6e5]} 17. Nxd4 {[%emt 0:13:51]} Nxd4 {[%emt 0:00:13] Weighted Error Value: White=0.15 (very precise) /Black=0.16 (very precise) .  Mistake:       	White=1     	Black=1      OK:         	White=3     	Black=5      Best:        	---       	Black=1      Strong:       	White=1     	---} 1/2-1/2

[Event "Djerba Festival Masters 2024"]
[Site "Djerba"]
[Date "2024.02.25"]
[Round "7.1"]
[White "Ivanchuk, Vasyl"]
[Black "Dardha, Daniel"]
[Result "1/2-1/2"]
[ECO "D24"]
[WhiteElo "2623"]
[BlackElo "2602"]
[Annotator "TA"]
[PlyCount "37"]
[EventDate "2024.02.18"]
[EventType "tourn"]
[EventCountry "TUN"]
[SourceTitle "playchess.com"]
[Source "ChessBase"]
[SourceQuality "1"]
[TimeControl "5400+30"]

{[%evp 14,37,0,0,0,0,0,0,0,0,0,0,0,0,0,0,0,0,0,0,0,0,0,0,0,0]} 1. d4 {[%emt 0:00:03]} d5 {[%emt 0:05:08]} 2. c4 {[%emt 0:00:04]} dxc4 {[%emt 0:00:12]} 3. Nf3 {[%emt 0:00:38]} Nf6 {[%emt 0:00:06][%cal Bg8f6,Bf6d5,Bd5b6][%mdl 32]} 4. Nc3 {[%emt 0:00:06]} a6 {[%emt 0:01:22]} 5. e4 {[%emt 0:00:05][%cal Be2e4,Be4e5][%mdl 32]} b5 {[%emt 0:00:07]} 6. e5 {[%emt 0:00:03]} Nd5 {[%emt 0:00:08]} 7. a4 {[%emt 0:00:02]} e6 {[%emt 0:01:41]} 8. axb5 {[%emt 0:00:03] The position is equal.} Bb4 {[%emt 0:00:20][%csl LRb5,LRc3]} 9. Qc2 {[%emt 0:10:35]} (9. Bxc4 $2 {loses.} Nxc3 (9... Bxc3+ $2 {too greedy.} 10. bxc3 Nxc3 11. Qc2 $18) 10. bxc3 Bxc3+ 11. Bd2 Bxa1 12. Qxa1 Bb7 $19) 9... Nb6 {[%emt 0:03:08]} 10. Qe4 {[%emt 0:00:05][%cal Of1c4] Against Bb7} Qd5 {[%emt 0:27:09]} 11. Qg4 {[%emt 0:00:08]} axb5 {[%emt 0:01:09]} 12. Rxa8 {[%emt 0:00:04]} Qxa8 {[%emt 0:00:06]} 13. Qxg7 {[%emt 0:00:02]} Qa1 {[%emt 0:03:09][%csl LRc1,LRc3]} 14. Qxh8+ {[%emt 0:00:08]} Kd7 $1 {[%emt 0:00:05]} 15. Kd2 {[%emt 0:03:06]} Bxc3+ {[%emt 0:07:44]} 16. bxc3 {[%emt 0:00:41]} (16. Kxc3 $2 {gets mated.} Qxc1+ 17. Kb4 Qxb2+ 18. Kc5 Na6#) 16... Qa2+ {[%emt 0:02:33]} 17. Kd1 {[%emt 0:03:56]} Qa4+ {[%emt 0:01:10]} 18. Kd2 {[%emt 0:00:45]} Qa2+ $1 {[%emt 0:00:06]} 19. Kd1 {[%emt 0:01:02] An uneventful encounter.   Weighted Error Value: White=0.00 (flawless) /Black=0.00 (flawless) .  OK:         	White=3     	Black=7      Best:        	White=2     	---        Strong:       	---       	Black=2} 1/2-1/2

[Event "Djerba Festival Masters 2024"]
[Site "Djerba"]
[Date "2024.02.25"]
[Round "7.2"]
[White "Maurizzi, Marc`Andria"]
[Black "Divya Deshmukh"]
[Result "1/2-1/2"]
[ECO "C10"]
[WhiteElo "2572"]
[BlackElo "2420"]
[Annotator "TA"]
[PlyCount "45"]
[EventDate "2024.02.18"]
[EventType "tourn"]
[EventCountry "TUN"]
[SourceTitle "playchess.com"]
[Source "ChessBase"]
[SourceQuality "1"]
[TimeControl "5400+30"]

{[%evp 14,45,26,0,0,0,28,25,42,0,17,13,3,12,5,0,0,-31,-17,-29,26,0,0,0,0,-5,0,0,0,0,0,0,28,-20]} 1. e4 {[%emt 0:00:05]} e6 {[%emt 0:02:33]} 2. d4 {[%emt 0:00:46]} d5 {[%emt 0:00:13]} 3. Nc3 {[%emt 0:00:25]} Nf6 {[%emt 0:00:06]} 4. Bg5 {[%emt 0:00:08]} dxe4 {[%emt 0:00:54]} 5. Nxe4 {[%emt 0:00:04]} Nbd7 {[%emt 0:00:14][%cal Bb8d7,Bd7f6,Bf6d5,Bd5e3][%mdl 32]} 6. Nf3 {[%emt 0:04:05]} h6 {[%emt 0:00:14]} 7. Nxf6+ {[%emt 0:01:12]} Nxf6 {[%emt 0:00:07]} 8. Be3 {[%emt 0:01:16]} Bd6 {[%emt 0:01:34]} 9. Bd3 {[%emt 0:01:51]} Bd7 {[%emt 0:02:41]} 10. Qe2 {[%emt 0:05:48]} Nd5 {[%emt 0:05:53]} 11. c4 {[%emt 0:05:47]} Bb4+ {[%emt 0:05:37]} 12. Nd2 {[%emt 1:15:03]} Nxe3 {[%emt 0:08:13]} 13. fxe3 {[%emt 0:00:00]} Qh4+ {[%emt 0:00:46]} 14. g3 {[%emt 0:00:00]} Qe7 {[%emt 0:01:44]} 15. O-O {[%emt 0:01:30]} Bxd2 {[%emt 0:17:44]} 16. Qxd2 {[%emt 0:00:00]} O-O {[%emt 0:02:42]} (16... O-O-O $142) 17. b4 {[%emt 0:00:00]} e5 {[%emt 0:04:11]} 18. d5 {[%emt 0:00:00]} a5 {[%emt 0:01:58]} 19. a3 {[%emt 0:00:00]} axb4 {[%emt 0:01:42]} 20. axb4 {[%emt 0:00:00]} e4 {[%emt 0:00:47]} 21. Be2 {[%emt 0:00:00]} Bh3 {[%emt 0:07:36]} 22. Rfc1 {[%emt 0:00:00]} Qe5 {[%emt 0:01:22]} 23. Rxa8 {[%emt 0:00:00] Weighted Error Value: White=0.11 (very precise) /Black=0.12 (very precise) .  Mistake:       	White=1     	Black=1      Inaccurate:     	White=3     	Black=2      OK:         	White=5     	Black=8} (23. Qd4 $142 Qxd4 24. exd4) 1/2-1/2

[Event "Djerba Festival Masters 2024"]
[Site "Djerba"]
[Date "2024.02.25"]
[Round "7.3"]
[White "Bellahcene, Bilel"]
[Black "Niemann, Hans Moke"]
[Result "0-1"]
[ECO "B95"]
[WhiteElo "2516"]
[BlackElo "2692"]
[Annotator "TA"]
[PlyCount "110"]
[EventDate "2024.02.18"]
[EventType "tourn"]
[EventCountry "TUN"]
[SourceTitle "playchess.com"]
[Source "ChessBase"]
[SourceQuality "1"]
[TimeControl "5400+30"]

{[%evp 38,110,33,-85,-87,-151,-149,-155,-161,-142,-137,-161,-85,-93,-90,-106,-86,-90,-31,-55,-10,-14,0,-5,-4,-7,0,0,0,0,0,-78,-78,-71,-79,-82,-73,-88,-25,-104,-106,-97,-8,-112,-131,-162,-100,-147,-94,-87,-53,-36,-18,-84,-106,-82,-37,-96,-118,-395,-300,-443,-442,-421,-410,-29983,-29984,-29988,-29989,-29989,-29990,-29994,-29995,-29995,-29996]} 1. e4 {[%emt 0:03:20]} c5 {[%emt 0:05:12]} 2. Nf3 {[%emt 0:00:10]} d6 {[%emt 0:00:06]} 3. d4 {[%emt 0:00:04]} cxd4 {[%emt 0:00:10]} 4. Nxd4 {[%emt 0:00:02]} Nf6 {[%emt 0:00:11]} 5. Nc3 {[%emt 0:00:03]} a6 {[%emt 0:00:07]} 6. Bg5 {[%emt 0:00:47]} e6 {[%emt 0:00:32]} 7. Qf3 {[%emt 0:00:31]} h6 {[%emt 0:00:10]} 8. Be3 {[%emt 0:02:28]} e5 {[%emt 0:00:37] 8...e5 was played by the boomers. B95: Sicilian Najdorf: 6 Bg5 e6, unusual White 7th moves.} 9. Nb3 {[%emt 0:01:39]} Bg4 $5 {[%emt 0:00:08][%mdl 4] A promising side line.} 10. Qg3 {[%emt 0:00:08]} Nbd7 $146 {[%emt 0:00:06]} ({Predecessor:} 10... Be6 11. Be2 Nbd7 12. O-O Rc8 13. Bd2 g5 14. Rfd1 Rg8 15. Qd3 Nb6 16. a4 g4 {½-½ Hervet,G (2382)-Schreiber,E (2336) olm21 sf03 email 2016 [2]}) 11. f3 {[%emt 0:04:18]} Be6 {[%emt 0:00:11]} 12. O-O-O {[%emt 0:00:41]} Rc8 {[%emt 0:00:06]} 13. Nd5 {[%emt 0:04:40]} Nxd5 {[%emt 0:05:35]} 14. exd5 {[%emt 0:00:22]} Bf5 {[%emt 0:00:08]} 15. Bd3 {[%emt 0:01:24]} Bxd3 {[%emt 0:01:02]} 16. Rxd3 {[%emt 0:00:03]} g6 {[%emt 0:00:29]} 17. f4 {[%emt 0:06:32]} h5 {[%emt 0:08:47]} 18. Rf1 {[%emt 0:02:51]} h4 {[%emt 0:01:50]} 19. Qh3 {[%emt 0:09:15]} Rh5 {[%emt 0:00:16]} 20. f5 {[%emt 0:06:03]} (20. Kb1 $14 {stays ahead.}) 20... Qf6 $17 {[%emt 0:02:08]} 21. Na5 {[%emt 0:06:51]} (21. Rdd1 $142) 21... Rxf5 $17 {[%emt 0:13:14]} 22. Rxf5 {[%emt 0:00:43]} Qxf5 {[%emt 0:00:10]} 23. Qxf5 {[%emt 0:00:04]} gxf5 {[%emt 0:00:05]} 24. Bf2 {[%emt 0:04:58]} Nc5 {[%emt 0:02:58]} (24... e4 $19 25. Rh3 Nf6 26. Rxh4 Nxd5) 25. Rc3 {[%emt 0:03:50]} b6 {[%emt 0:08:40]} 26. Nb7 {[%emt 0:00:54]} Kd7 {[%emt 0:16:10]} 27. Nxc5+ {[%emt 0:00:21]} bxc5 {[%emt 0:01:49]} (27... dxc5 $17 28. Bxh4 Bd6) 28. Bxh4 $15 {[%emt 0:01:02]} Bh6+ {[%emt 0:01:24]} 29. Kd1 {[%emt 0:00:37]} f4 {[%emt 0:01:17]} 30. Rb3 {[%emt 0:03:16]} Rg8 {[%emt 0:03:27]} 31. g3 {[%emt 0:04:39]} Kc7 {[%emt 0:00:07]} 32. Ra3 {[%emt 0:00:57]} Kb6 {[%emt 0:02:00]} 33. Rb3+ {[%emt 0:07:47]} Ka7 {[%emt 0:00:10]} 34. gxf4 {[%emt 0:02:00]} (34. Be7 $11 {remains equal.} Rg6 35. Bd8) 34... Bxf4 $17 {[%emt 0:01:11]} 35. Bg3 {[%emt 0:01:28]} Bxg3 $1 {[%emt 0:00:22]} 36. hxg3 {[%emt 0:01:09]} c4 {[%emt 0:02:18]} 37. Rb4 {[%emt 0:04:46]} Rg4 {[%emt 0:00:37]} (37... Rxg3 $6 38. Rxc4 f5 39. Rc6 $11) (37... Rc8 $1 $17 38. b3 cxb3 39. axb3 Rc5) 38. b3 {[%emt 0:02:18]} (38. a4 $11) 38... a5 $1 $17 {[%emt 0:09:38]} 39. Rb5 {[%emt 0:02:17]} (39. Rxc4 Rxc4 40. bxc4 Kb6 $19) 39... c3 {[%emt 0:01:39]} (39... Rxg3 40. bxc4 Rc3 41. Rxa5+ Kb6 42. Rb5+ Kc7 43. a4 $11) (39... cxb3 $17 {Threatens to win with ...Rb4.} 40. axb3 Ka6 (40... Rxg3 41. c4 $17)) 40. Ke2 {[%emt 0:02:06]} (40. Rxa5+ $11 Kb6 41. Ra8) 40... Rxg3 $17 {[%emt 0:00:19]} 41. Rxa5+ {[%emt 0:00:38]} Kb6 {[%emt 0:00:07]} 42. Ra4 {[%emt 0:04:26]} (42. Ra8 $142) 42... Rg2+ {[%emt 0:05:53]} (42... Kc5 $142 $1 {[%cal Og3h3] Strongly threatening ...Rh3!} 43. Rc4+ Kxd5) 43. Kd3 $17 {[%emt 0:00:19]} Rd2+ {[%emt 0:03:57]} 44. Kxc3 {[%emt 0:00:12]} Rxd5 {[%emt 0:00:04]} 45. Rb4+ {[%emt 0:03:51]} (45. Re4 $11 {keeps the balance.}) 45... Kc6 $1 $17 {[%emt 0:00:11]} 46. Rc4+ {[%emt 0:00:19] [#]} Kd7 $1 {[%emt 0:00:08]} 47. b4 {[%emt 0:01:43]} ({White should try} 47. Rg4 $15) 47... f5 $17 {[%emt 0:00:05]} 48. a4 $2 {[%emt 0:00:10][%mdl 8192]} (48. Rh4 $17 {was forced.}) 48... f4 {[%emt 0:01:42]} 49. a5 {[%emt 0:05:08]} (49. Re4 $142 Rd1 50. Re2) 49... Rd1 $19 {[%emt 0:02:09]} 50. a6 {[%emt 0:00:43]} Ra1 {[%emt 0:03:14]} 51. b5 {[%emt 0:00:35]} (51. Kd3 $19 Ra3+ (51... Rxa6 $2 52. b5 $19) 52. Rc3 Rxa6 53. b5) 51... f3 {[%emt 0:00:06]} 52. b6 {[%emt 0:00:31]} f2 $1 {[%emt 0:00:32]} (52... Rxa6 53. Rc7+ Ke6 54. b7 $17) 53. Rc7+ {[%emt 0:00:30] [#]} Ke6 $1 {[%emt 0:00:04]} 54. b7 {[%emt 0:00:15]} f1=Q {[%emt 0:03:52]} (54... f1=R $2 {too greedy.} 55. b8=Q (55. b8=B $2 {perishes.} Rxa6 56. Ba7 Rf7 $19) 55... Rf4 56. a7 (56. Qg8+ Kf5 $18) 56... Ra3+ 57. Kb2 $18) 55. b8=Q {[%emt 0:00:07]} Qf3+ {[%emt 0:00:30]} 0-1